[Event "*** Titled Tuesday Blitz"]
[Site "Chess.com"]
[Date "2019.04.02"]
[Round "7"]
[White "HanSchut"]
[Black "Nancy11111"]
[Result "1/2-1/2"]
[WhiteElo "2180"]
[BlackElo "2270"]
[TimeControl "180+2"]
[EndTime "15:35:06 PDT"]
[Termination "Game drawn by repetition"]

1. e4 {[%clk 0:03:01.9]} 1... c5 {[%clk 0:02:58.4]} 2. Nf3 {[%clk 0:03:02.6]}
2... d6 {[%clk 0:02:58.4]} 3. d4 {[%clk 0:03:04]} 3... cxd4 {[%clk 0:03:00.3]}
4. Nxd4 {[%clk 0:03:05.2]} 4... Nf6 {[%clk 0:03:01.5]} 5. f3 {[%clk 0:03:06.7]}
5... a6 {[%clk 0:03:00.3]} 6. c4 {[%clk 0:03:06.5]} 6... g6 {[%clk 0:02:58.3]}
7. Be3 {[%clk 0:03:06.3]} 7... Bg7 {[%clk 0:02:58.7]} 8. Qd2 {[%clk 0:03:07.9]}
8... O-O {[%clk 0:02:59.2]} 9. Nc3 {[%clk 0:03:09.4]} 9... Nc6 {[%clk
0:02:51.9]} 10. Be2 {[%clk 0:03:10.1]} 10... Nd7 {[%clk 0:02:50.3]} 11. Nc2
{[%clk 0:03:07.5]} 11... b6 {[%clk 0:02:40.7]} 12. O-O {[%clk 0:03:00.3]} 12...
Bb7 {[%clk 0:02:39.9]} 13. Rac1 {[%clk 0:02:54.4]} 13... Rc8 {[%clk 0:02:38.4]}
14. Rfd1 {[%clk 0:02:51.8]} 14... Nce5 {[%clk 0:02:36.1]} 15. b3 {[%clk
0:02:52]} 15... b5 {[%clk 0:02:31.6]} 16. cxb5 {[%clk 0:02:41.8]} 16... Rxc3
{[%clk 0:02:28.5]} 17. bxa6 {[%clk 0:02:35.9]} 17... Ba8 {[%clk 0:02:22.3]} 18.
Nd4 {[%clk 0:02:23.2]} 18... Rxc1 {[%clk 0:02:20.2]} 19. Rxc1 {[%clk 0:02:25.1]}
19... Nc5 {[%clk 0:02:17.8]} 20. b4 {[%clk 0:02:12]} 20... Na4 {[%clk
0:02:15.6]} 21. Bb5 {[%clk 0:01:56.9]} 21... Nb6 {[%clk 0:02:13]} 22. a4 {[%clk
0:01:49.4]} 22... Qb8 {[%clk 0:02:09.2]} 23. a5 {[%clk 0:01:31.8]} 23... Nc8
{[%clk 0:02:08.8]} 24. Be2 {[%clk 0:01:22.1]} 24... d5 {[%clk 0:02:00.7]} 25.
exd5 {[%clk 0:01:11.5]} 25... Bxd5 {[%clk 0:02:02.6]} 26. b5 {[%clk 0:01:07.8]}
26... Nd7 {[%clk 0:01:53.3]} 27. b6 {[%clk 0:00:43.9]} 27... Ncxb6 {[%clk
0:01:47.8]} 28. axb6 {[%clk 0:00:45.8]} 28... Nxb6 {[%clk 0:01:49.2]} 29. Nc6
{[%clk 0:00:35.4]} 29... Bxc6 {[%clk 0:01:20.1]} 30. Rxc6 {[%clk 0:00:37.3]}
30... Nc8 {[%clk 0:01:18.7]} 31. Rxc8 {[%clk 0:00:18.4]} 31... Rxc8 {[%clk
0:01:16.8]} 32. a7 {[%clk 0:00:19.5]} 32... Qb1+ {[%clk 0:01:13.5]} 33. Kf2
{[%clk 0:00:20.8]} 33... Qa1 {[%clk 0:01:02.5]} 34. Bd3 {[%clk 0:00:18]} 34...
Ra8 {[%clk 0:00:59.6]} 35. Be4 {[%clk 0:00:17.5]} 35... Rxa7 {[%clk 0:00:58.8]}
36. Qd8+ {[%clk 0:00:15.7]} 36... Bf8 {[%clk 0:00:59.2]} 37. Bh6 {[%clk
0:00:13]} 37... Ra2+ {[%clk 0:00:34.3]} 38. Kg3 {[%clk 0:00:13.4]} 38... Qe5+
{[%clk 0:00:34.3]} 39. f4 {[%clk 0:00:11.2]} 39... Ra3+ {[%clk 0:00:27.8]} 40.
Bf3 {[%clk 0:00:12.2]} 40... Qe1+ {[%clk 0:00:26.8]} 41. Kh3 {[%clk 0:00:08.7]}
41... Rxf3+ {[%clk 0:00:24.3]} 42. gxf3 {[%clk 0:00:09.9]} 42... Qf1+ {[%clk
0:00:25.4]} 43. Kg3 {[%clk 0:00:10.8]} 43... Qg1+ {[%clk 0:00:26.6]} 44. Kh3
{[%clk 0:00:10.8]} 44... Qf1+ {[%clk 0:00:27.6]} 45. Kg3 {[%clk 0:00:12]} 45...
Qe1+ {[%clk 0:00:27]} 46. Kh3 {[%clk 0:00:12.9]} 46... Qf1+ {[%clk 0:00:17]} 47.
Kg3 {[%clk 0:00:11.1]} 47... Qg1+ {[%clk 0:00:16.2]} 48. Kh3 {[%clk 0:00:11.6]}
48... Qf1+ {[%clk 0:00:17.3]} 49. Kg3 {[%clk 0:00:12.4]} 49... Qe1+ {[%clk
0:00:18.5]} 50. Kh3 {[%clk 0:00:13.3]} 50... Qe6+ {[%clk 0:00:09.7]} 51. Kg2
{[%clk 0:00:07.9]} 51... Qe2+ {[%clk 0:00:10.5]} 52. Kg3 {[%clk 0:00:09]} 52...
Qe1+ {[%clk 0:00:11.7]} 53. Kh3 {[%clk 0:00:08.1]} 53... Qf1+ {[%clk 0:00:13]}
1/2-1/2

[Event "*** Titled Tuesday Blitz"]
[Site "Chess.com"]
[Date "2019.04.02"]
[Round "7"]
[White "SARGISMV"]
[Black "area_5"]
[Result "0-1"]
[WhiteElo "2452"]
[BlackElo "2712"]
[TimeControl "180+2"]
[EndTime "15:35:07 PDT"]
[Termination "area_5 won by checkmate"]

1. d4 {[%clk 0:03:01.9]} 1... g6 {[%clk 0:03:00.1]} 2. c4 {[%clk 0:03:02.4]}
2... Bg7 {[%clk 0:03:01.1]} 3. Nc3 {[%clk 0:03:03.5]} 3... d6 {[%clk 0:03:01.1]}
4. e4 {[%clk 0:03:03.5]} 4... Nc6 {[%clk 0:03:02.1]} 5. Be3 {[%clk 0:02:59.6]}
5... e5 {[%clk 0:03:02.7]} 6. d5 {[%clk 0:02:58.6]} 6... Nd4 {[%clk 0:03:03.7]}
7. Nge2 {[%clk 0:02:59]} 7... Nxe2 {[%clk 0:03:04.6]} 8. Bxe2 {[%clk 0:02:59.6]}
8... f5 {[%clk 0:03:06.2]} 9. exf5 {[%clk 0:02:49.9]} 9... gxf5 {[%clk
0:03:08.1]} 10. f4 {[%clk 0:02:50.8]} 10... e4 {[%clk 0:03:08.1]} 11. Bh5+
{[%clk 0:02:51]} 11... Kf8 {[%clk 0:03:08.7]} 12. O-O {[%clk 0:02:46.1]} 12...
Nf6 {[%clk 0:03:08.1]} 13. Be2 {[%clk 0:02:33.1]} 13... h5 {[%clk 0:03:08.1]}
14. h3 {[%clk 0:02:31.4]} 14... Bd7 {[%clk 0:03:04.6]} 15. Bd4 {[%clk 0:02:24]}
15... Qe7 {[%clk 0:03:03.5]} 16. Qd2 {[%clk 0:02:24.7]} 16... Kf7 {[%clk
0:03:03.2]} 17. Nd1 {[%clk 0:02:24.8]} 17... h4 {[%clk 0:02:58.5]} 18. Ne3
{[%clk 0:02:25.3]} 18... Bh6 {[%clk 0:02:56.6]} 19. Rf2 {[%clk 0:02:20.4]} 19...
Rhg8 {[%clk 0:02:53.5]} 20. Qc3 {[%clk 0:02:20.1]} 20... Rg3 {[%clk 0:02:49.3]}
21. Qb4 {[%clk 0:02:08.8]} 21... b6 {[%clk 0:02:48.3]} 22. Nf1 {[%clk
0:02:09.5]} 22... Rg6 {[%clk 0:02:42.8]} 23. Qc3 {[%clk 0:01:57.6]} 23... Rag8
{[%clk 0:02:39.2]} 24. Re1 {[%clk 0:01:53.4]} 24... Kf8 {[%clk 0:02:01.6]} 25.
Ne3 {[%clk 0:01:44.2]} 25... a5 {[%clk 0:01:42.8]} 26. b3 {[%clk 0:01:44.2]}
26... Ne8 {[%clk 0:01:36.7]} 27. a3 {[%clk 0:01:32.6]} 27... Rg3 {[%clk
0:01:37]} 28. b4 {[%clk 0:01:33.6]} 28... axb4 {[%clk 0:01:32.2]} 29. axb4
{[%clk 0:01:35.5]} 29... Rxh3 {[%clk 0:01:32.9]} 30. c5 {[%clk 0:01:31.3]} 30...
bxc5 {[%clk 0:01:32.6]} 31. bxc5 {[%clk 0:01:32.5]} 31... Rhg3 {[%clk
0:01:32.6]} 32. Rb1 {[%clk 0:01:24.3]} 32... h3 {[%clk 0:01:25.5]} 33. Rb8
{[%clk 0:01:23.2]} 33... hxg2 {[%clk 0:00:48.3]} 34. Bf6 {[%clk 0:01:22.6]}
34... Qf7 {[%clk 0:00:37.4]} 35. c6 {[%clk 0:01:17.6]} 35... Bxc6 {[%clk
0:00:30.4]} 36. dxc6 {[%clk 0:01:13.9]} 36... Rh3 {[%clk 0:00:23.7]} 37. Rxg2
{[%clk 0:01:01.9]} 37... Bxf4 {[%clk 0:00:23.9]} 38. Rxe8+ {[%clk 0:00:21.6]}
38... Kxe8 {[%clk 0:00:19]} 39. Bc4 {[%clk 0:00:16]} 39... Rxg2+ {[%clk
0:00:16.4]} 40. Nxg2 {[%clk 0:00:16.1]} 40... Qh7 {[%clk 0:00:08]} 41. Qa5
{[%clk 0:00:12.4]} 41... Rh1+ {[%clk 0:00:08.6]} 42. Kf2 {[%clk 0:00:13.5]}
42... e3+ {[%clk 0:00:09.8]} 43. Ke2 {[%clk 0:00:14.3]} 43... Qh5+ {[%clk
0:00:10.7]} 44. Kd3 {[%clk 0:00:15.3]} 44... Qd1+ {[%clk 0:00:11.7]} 45. Kc3
{[%clk 0:00:15.3]} 45... Qc1+ {[%clk 0:00:11.3]} 46. Kb3 {[%clk 0:00:15.9]}
46... Qb1+ {[%clk 0:00:12.2]} 47. Bb2 {[%clk 0:00:17.3]} 47... Qd1+ {[%clk
0:00:12.5]} 48. Ka2 {[%clk 0:00:18.8]} 48... Qb1+ {[%clk 0:00:12.8]} 49. Ka3
{[%clk 0:00:19.3]} 49... e2 {[%clk 0:00:12.7]} 50. Qa8+ {[%clk 0:00:20.1]} 50...
Ke7 {[%clk 0:00:13.4]} 51. Bxe2 {[%clk 0:00:20.8]} 51... Rh3+ {[%clk 0:00:13.6]}
52. Ka4 {[%clk 0:00:18.1]} 52... Qa2+ {[%clk 0:00:13.9]} 53. Kb5 {[%clk
0:00:18.2]} 53... Qxa8 {[%clk 0:00:14.7]} 54. Kc4 {[%clk 0:00:19]} 54... Qa4+
{[%clk 0:00:15.1]} 55. Kd5 {[%clk 0:00:18.3]} 55... Qe4# {[%clk 0:00:16.1]} 0-1

[Event "*** Titled Tuesday Blitz"]
[Site "Chess.com"]
[Date "2019.04.02"]
[Round "7"]
[White "LimeInTheCoconut"]
[Black "hellokostya"]
[Result "0-1"]
[WhiteElo "2491"]
[BlackElo "2508"]
[TimeControl "180+2"]
[EndTime "15:35:14 PDT"]
[Termination "hellokostya won by resignation"]

1. e4 {[%clk 0:03:01.9]} 1... e5 {[%clk 0:02:42.1]} 2. Nf3 {[%clk 0:03:02.5]}
2... Nc6 {[%clk 0:02:40.5]} 3. Bc4 {[%clk 0:03:04]} 3... Bc5 {[%clk 0:02:40.7]}
4. O-O {[%clk 0:03:05.3]} 4... d6 {[%clk 0:02:30.8]} 5. c3 {[%clk 0:03:06.1]}
5... Nf6 {[%clk 0:02:26.4]} 6. d3 {[%clk 0:03:07.1]} 6... Bb6 {[%clk 0:02:15.8]}
7. Nbd2 {[%clk 0:03:06]} 7... O-O {[%clk 0:02:12.5]} 8. h3 {[%clk 0:03:06.5]}
8... h6 {[%clk 0:02:02.9]} 9. Re1 {[%clk 0:03:06.3]} 9... Ne7 {[%clk 0:02:03.9]}
10. d4 {[%clk 0:03:05.9]} 10... Ng6 {[%clk 0:02:05]} 11. Bf1 {[%clk 0:03:03.6]}
11... Re8 {[%clk 0:02:04.9]} 12. a4 {[%clk 0:02:54.4]} 12... c6 {[%clk
0:02:04.4]} 13. Qc2 {[%clk 0:02:49]} 13... a5 {[%clk 0:01:56.5]} 14. Nc4 {[%clk
0:02:43.8]} 14... Bc7 {[%clk 0:01:49.8]} 15. dxe5 {[%clk 0:02:44.8]} 15... dxe5
{[%clk 0:01:50.6]} 16. Be3 {[%clk 0:02:44.2]} 16... Qe7 {[%clk 0:01:43.9]} 17.
Rad1 {[%clk 0:02:42.4]} 17... Be6 {[%clk 0:01:32.8]} 18. Nfd2 {[%clk 0:02:16.8]}
18... Nh5 {[%clk 0:01:19.9]} 19. Nb3 {[%clk 0:02:08.6]} 19... Nhf4 {[%clk
0:01:20.6]} 20. Kh2 {[%clk 0:01:38.9]} 20... Kh7 {[%clk 0:01:11.3]} 21. Bc5
{[%clk 0:01:32.9]} 21... Qf6 {[%clk 0:01:05.8]} 22. Nd6 {[%clk 0:01:28.6]} 22...
Reb8 {[%clk 0:00:53.3]} 23. g3 {[%clk 0:01:12.6]} 23... b6 {[%clk 0:00:50.8]}
24. Ba3 {[%clk 0:01:05.3]} 24... Nh5 {[%clk 0:00:28.1]} 25. Kg1 {[%clk
0:00:55.8]} 25... b5 {[%clk 0:00:28.9]} 26. Nc5 {[%clk 0:00:50.4]} 26... b4
{[%clk 0:00:24.8]} 27. Nxe6 {[%clk 0:00:46.8]} 27... fxe6 {[%clk 0:00:24.2]} 28.
cxb4 {[%clk 0:00:43.6]} 28... axb4 {[%clk 0:00:25]} 29. Qe2 {[%clk 0:00:35.1]}
29... Qg5 {[%clk 0:00:18.6]} 30. Nf7 {[%clk 0:00:25.2]} 30... Qe7 {[%clk
0:00:19.8]} 31. Qxh5 {[%clk 0:00:22.5]} 31... Qxf7 {[%clk 0:00:21.3]} 32. Bxb4
{[%clk 0:00:08.6]} 32... Rxb4 {[%clk 0:00:21.9]} 33. Rc1 {[%clk 0:00:09.5]}
33... Rxb2 {[%clk 0:00:22.6]} 34. Re2 {[%clk 0:00:09.6]} 34... Rab8 {[%clk
0:00:23.7]} 35. Rxc6 {[%clk 0:00:09.3]} 35... Rxe2 {[%clk 0:00:24.5]} 36. Qxe2
{[%clk 0:00:10.1]} 36... Rb1 {[%clk 0:00:24.4]} 37. Kg2 {[%clk 0:00:08.3]} 37...
Bb8 {[%clk 0:00:24.4]} 38. a5 {[%clk 0:00:08.2]} 38... Ba7 {[%clk 0:00:25.5]}
39. Qc2 {[%clk 0:00:03.1]} 39... Rb7 {[%clk 0:00:20.4]} 40. a6 {[%clk
0:00:04.4]} 40... Rd7 {[%clk 0:00:21.4]} 41. Bc4 {[%clk 0:00:04.7]} 41... Nf8
{[%clk 0:00:22.2]} 42. Bb3 {[%clk 0:00:04.8]} 42... Qe7 {[%clk 0:00:22.8]} 43.
Qe2 {[%clk 0:00:05.6]} 43... Qb4 {[%clk 0:00:23.1]} 44. Qc4 {[%clk 0:00:04.2]}
44... Qxc4 {[%clk 0:00:22.1]} 45. Bxc4 {[%clk 0:00:06.1]} 45... Kg8 {[%clk
0:00:21.3]} 46. Rxe6 {[%clk 0:00:04]} 46... Kh7 {[%clk 0:00:21.2]} 47. Rc6
{[%clk 0:00:04.8]} 47... Ng6 {[%clk 0:00:19.1]} 48. Bd5 {[%clk 0:00:06.1]} 48...
Ne7 {[%clk 0:00:19.8]} 49. Re6 {[%clk 0:00:04.8]} 49... Nxd5 {[%clk 0:00:20.7]}
50. exd5 {[%clk 0:00:06]} 50... Rxd5 {[%clk 0:00:19.6]} 51. Re7 {[%clk
0:00:07.2]} 51... Bd4 {[%clk 0:00:20.8]} 52. Kf3 {[%clk 0:00:05.7]} 52... Ra5
{[%clk 0:00:21.9]} 53. a7 {[%clk 0:00:06.2]} 53... Rxa7 {[%clk 0:00:22.6]} 54.
Rxa7 {[%clk 0:00:06.4]} 54... Bxa7 {[%clk 0:00:24.5]} 55. Ke4 {[%clk 0:00:08.3]}
55... Bxf2 {[%clk 0:00:24.9]} 56. Kxe5 {[%clk 0:00:07.8]} 56... Bxg3+ {[%clk
0:00:25.8]} 57. Kf5 {[%clk 0:00:09.7]} 57... Bb8 {[%clk 0:00:27]} 58. h4 {[%clk
0:00:10.5]} 58... g6+ {[%clk 0:00:27.8]} 59. Kg4 {[%clk 0:00:11.2]} 59... Bc7
{[%clk 0:00:29.3]} 60. Kh3 {[%clk 0:00:10.8]} 60... Bd8 {[%clk 0:00:30.1]} 61.
Kg4 {[%clk 0:00:12.7]} 61... h5+ {[%clk 0:00:31.1]} 62. Kh3 {[%clk 0:00:13.7]}
62... Kg7 {[%clk 0:00:32.7]} 0-1

[Event "*** Titled Tuesday Blitz"]
[Site "Chess.com"]
[Date "2019.04.02"]
[Round "7"]
[White "Denis_Palkovich"]
[Black "MaxLeto"]
[Result "0-1"]
[WhiteElo "2229"]
[BlackElo "2320"]
[TimeControl "180+2"]
[EndTime "15:35:15 PDT"]
[Termination "MaxLeto won on time"]

1. d4 {[%clk 0:03:01.9]} 1... g6 {[%clk 0:02:39.3]} 2. Bf4 {[%clk 0:03:01.3]}
2... Bg7 {[%clk 0:02:40.7]} 3. e3 {[%clk 0:03:02.8]} 3... d6 {[%clk 0:02:42.2]}
4. Nf3 {[%clk 0:03:02.2]} 4... Nc6 {[%clk 0:02:43.4]} 5. h3 {[%clk 0:03:02.7]}
5... e5 {[%clk 0:02:43.9]} 6. Bh2 {[%clk 0:03:04]} 6... f5 {[%clk 0:02:39.5]} 7.
Be2 {[%clk 0:02:57.4]} 7... Qe7 {[%clk 0:02:31]} 8. O-O {[%clk 0:02:55.9]} 8...
Nf6 {[%clk 0:02:32.1]} 9. c4 {[%clk 0:02:51.6]} 9... O-O {[%clk 0:02:31.6]} 10.
Nc3 {[%clk 0:02:52.3]} 10... h6 {[%clk 0:02:30.2]} 11. Re1 {[%clk 0:02:53.3]}
11... g5 {[%clk 0:02:22.5]} 12. Nd5 {[%clk 0:02:47.7]} 12... Nxd5 {[%clk
0:01:58.3]} 13. cxd5 {[%clk 0:02:48.4]} 13... Nd8 {[%clk 0:01:56.8]} 14. dxe5
{[%clk 0:02:47.9]} 14... dxe5 {[%clk 0:01:58.7]} 15. Qb3 {[%clk 0:02:40.1]}
15... Kh8 {[%clk 0:01:57.4]} 16. Rac1 {[%clk 0:02:36.9]} 16... c6 {[%clk
0:01:34.2]} 17. dxc6 {[%clk 0:02:26.5]} 17... Nxc6 {[%clk 0:01:34.8]} 18. Bb5
{[%clk 0:02:14.2]} 18... Bd7 {[%clk 0:01:35.6]} 19. Red1 {[%clk 0:02:08.5]}
19... Rad8 {[%clk 0:01:35]} 20. Qa4 {[%clk 0:02:00.6]} 20... a6 {[%clk
0:01:34.7]} 21. Bxc6 {[%clk 0:01:41.9]} 21... Bxc6 {[%clk 0:01:36.6]} 22. Qa5
{[%clk 0:01:26.3]} 22... Bxf3 {[%clk 0:01:23.3]} 23. gxf3 {[%clk 0:01:28.2]}
23... f4 {[%clk 0:01:23.6]} 24. Rxd8 {[%clk 0:01:07]} 24... Rxd8 {[%clk
0:01:20.6]} 25. Rc7 {[%clk 0:01:05.4]} 25... Rd7 {[%clk 0:01:13.1]} 26. Rc8+
{[%clk 0:01:06.1]} 26... Kh7 {[%clk 0:01:06]} 27. Kg2 {[%clk 0:01:06.9]} 27...
Qe6 {[%clk 0:00:56.4]} 28. Qc5 {[%clk 0:00:55.8]} 28... Rd2 {[%clk 0:00:39.6]}
29. Rc7 {[%clk 0:00:46.7]} 29... Rd7 {[%clk 0:00:29.2]} 30. Qc2+ {[%clk
0:00:45.7]} 30... Kg8 {[%clk 0:00:26.1]} 31. Rc8+ {[%clk 0:00:46.8]} 31... Kf7
{[%clk 0:00:27.3]} 32. Qh7 {[%clk 0:00:46.5]} 32... Kf6 {[%clk 0:00:14.3]} 33.
e4 {[%clk 0:00:19.5]} 33... Re7 {[%clk 0:00:06.7]} 34. Rd8 {[%clk 0:00:08.9]}
34... Re8 {[%clk 0:00:03.8]} 35. Rxe8 {[%clk 0:00:06.4]} 35... Qxe8 {[%clk
0:00:05.7]} 36. Qf5+ {[%clk 0:00:07]} 36... Ke7 {[%clk 0:00:07.4]} 37. h4 {[%clk
0:00:08.5]} 37... Qf7 {[%clk 0:00:03.5]} 38. hxg5 {[%clk 0:00:07.1]} 38... Qxf5
{[%clk 0:00:03.8]} 39. exf5 {[%clk 0:00:07.4]} 39... hxg5 {[%clk 0:00:05.4]} 40.
Kf1 {[%clk 0:00:08.2]} 40... Kf6 {[%clk 0:00:05.4]} 41. Ke2 {[%clk 0:00:09.8]}
41... Kxf5 {[%clk 0:00:07]} 42. Kd3 {[%clk 0:00:11.3]} 42... Bf6 {[%clk
0:00:08]} 43. b3 {[%clk 0:00:11.9]} 43... Be7 {[%clk 0:00:09.3]} 44. Bg1 {[%clk
0:00:11.6]} 44... Bc5 {[%clk 0:00:10.1]} 45. Kc4 {[%clk 0:00:12.4]} 45... Bd4
{[%clk 0:00:10.6]} 46. Kd5 {[%clk 0:00:13]} 46... g4 {[%clk 0:00:08.1]} 47.
fxg4+ {[%clk 0:00:13.5]} 47... Kxg4 {[%clk 0:00:10]} 48. Ke4 {[%clk 0:00:08.7]}
48... Kh3 {[%clk 0:00:09.1]} 49. Kf3 {[%clk 0:00:08.9]} 49... b5 {[%clk
0:00:09.7]} 50. a4 {[%clk 0:00:09.1]} 50... bxa4 {[%clk 0:00:09.2]} 51. bxa4
{[%clk 0:00:11]} 51... a5 {[%clk 0:00:11.1]} 0-1

[Event "*** Titled Tuesday Blitz"]
[Site "Chess.com"]
[Date "2019.04.02"]
[Round "7"]
[White "SavelijTartakover"]
[Black "Konavets"]
[Result "0-1"]
[WhiteElo "2611"]
[BlackElo "2818"]
[TimeControl "180+2"]
[EndTime "15:35:18 PDT"]
[Termination "Konavets won by resignation"]

1. d4 {[%clk 0:03:01.9]} 1... Nf6 {[%clk 0:03:00.8]} 2. Bg5 {[%clk 0:03:02]}
2... c5 {[%clk 0:03:02.7]} 3. Bxf6 {[%clk 0:03:00.9]} 3... gxf6 {[%clk
0:03:04.6]} 4. d5 {[%clk 0:03:01.3]} 4... f5 {[%clk 0:03:06.1]} 5. c4 {[%clk
0:03:01.2]} 5... b5 {[%clk 0:03:05.5]} 6. cxb5 {[%clk 0:03:00.4]} 6... a6 {[%clk
0:03:06.9]} 7. e3 {[%clk 0:02:51.5]} 7... axb5 {[%clk 0:03:05.8]} 8. Bxb5 {[%clk
0:02:47.1]} 8... Qa5+ {[%clk 0:03:03.3]} 9. Nc3 {[%clk 0:02:47.9]} 9... Na6
{[%clk 0:03:00.1]} 10. Ne2 {[%clk 0:02:46.4]} 10... Rb8 {[%clk 0:02:57.8]} 11.
a4 {[%clk 0:02:43.3]} 11... Nb4 {[%clk 0:02:56.7]} 12. O-O {[%clk 0:02:41]}
12... Rg8 {[%clk 0:02:57.6]} 13. Nf4 {[%clk 0:02:35.5]} 13... Rb6 {[%clk
0:02:51.9]} 14. Qh5 {[%clk 0:02:26.7]} 14... Rf6 {[%clk 0:02:52.8]} 15. Rad1
{[%clk 0:02:11.7]} 15... Bb7 {[%clk 0:02:33.1]} 16. d6 {[%clk 0:01:54.5]} 16...
e6 {[%clk 0:02:23.7]} 17. g3 {[%clk 0:01:46.9]} 17... Qa8 {[%clk 0:02:01.5]} 18.
Qxh7 {[%clk 0:01:37.4]} 18... Rg4 {[%clk 0:01:48.5]} 19. Nh5 {[%clk 0:01:31.6]}
19... Qd8 {[%clk 0:01:30.4]} 20. Nxf6+ {[%clk 0:01:23.7]} 20... Qxf6 {[%clk
0:01:32.3]} 21. a5 {[%clk 0:01:03.2]} 21... Rg6 {[%clk 0:01:22.3]} 22. a6 {[%clk
0:00:48.9]} 22... Ba8 {[%clk 0:01:23.2]} 23. e4 {[%clk 0:00:32.5]} 23... Rh6
{[%clk 0:01:15.1]} 24. e5 {[%clk 0:00:30.4]} 24... Qd8 {[%clk 0:00:50.6]} 25.
Qg8 {[%clk 0:00:28.2]} 25... Rg6 {[%clk 0:00:51.9]} 26. Qh7 {[%clk 0:00:28.4]}
26... Rh6 {[%clk 0:00:53]} 27. Qg8 {[%clk 0:00:29.4]} 27... Nc2 {[%clk
0:00:51.9]} 28. Ne2 {[%clk 0:00:21.5]} 28... Rg6 {[%clk 0:00:46.4]} 29. Qh7
{[%clk 0:00:21.7]} 29... Rh6 {[%clk 0:00:48]} 30. Qg8 {[%clk 0:00:22.8]} 30...
Rg6 {[%clk 0:00:22.7]} 31. Qh7 {[%clk 0:00:23.7]} 31... Rg7 {[%clk 0:00:24]} 32.
Qh3 {[%clk 0:00:20.5]} 32... Qb6 {[%clk 0:00:24.5]} 33. Ba4 {[%clk 0:00:20.7]}
33... Nb4 {[%clk 0:00:21.6]} 34. Nf4 {[%clk 0:00:20.9]} 34... Qxa6 {[%clk
0:00:23]} 35. Ra1 {[%clk 0:00:19.1]} 35... Qb7 {[%clk 0:00:24.2]} 36. f3 {[%clk
0:00:19.6]} 36... Rg8 {[%clk 0:00:22.3]} 37. Nh5 {[%clk 0:00:20.4]} 37... Nd5
{[%clk 0:00:16.9]} 38. Rfd1 {[%clk 0:00:19.4]} 38... Rg6 {[%clk 0:00:15.5]} 39.
Rxd5 {[%clk 0:00:19.8]} 39... Qxd5 {[%clk 0:00:17.1]} 40. Bd1 {[%clk 0:00:18.5]}
40... Qd4+ {[%clk 0:00:15.7]} 41. Kh1 {[%clk 0:00:18.8]} 41... Bc6 {[%clk
0:00:16.9]} 42. Nf6+ {[%clk 0:00:18.7]} 42... Rxf6 {[%clk 0:00:15.6]} 43. exf6
{[%clk 0:00:19.7]} 43... Qxb2 {[%clk 0:00:17.3]} 44. Ra7 {[%clk 0:00:17.5]}
44... Bxd6 {[%clk 0:00:16.1]} 45. Qh8+ {[%clk 0:00:17.7]} 45... Bf8 {[%clk
0:00:17.3]} 46. Rc7 {[%clk 0:00:17]} 46... Bb7 {[%clk 0:00:18.6]} 47. Rxc5
{[%clk 0:00:16.2]} 47... Qd4 {[%clk 0:00:16.7]} 48. Rc1 {[%clk 0:00:16.6]} 48...
Qd2 {[%clk 0:00:16.7]} 49. Rb1 {[%clk 0:00:16.2]} 49... Qd3 {[%clk 0:00:17.9]}
50. Kg2 {[%clk 0:00:10.3]} 50... Qxb1 {[%clk 0:00:18.8]} 51. Be2 {[%clk
0:00:11.5]} 51... Qc2 {[%clk 0:00:19.6]} 52. Kf1 {[%clk 0:00:12.2]} 52... Qc1+
{[%clk 0:00:19.4]} 53. Kf2 {[%clk 0:00:12.6]} 53... Qb2 {[%clk 0:00:20.6]} 54.
Kf1 {[%clk 0:00:11.1]} 54... d5 {[%clk 0:00:20.6]} 55. h4 {[%clk 0:00:10.9]}
55... d4 {[%clk 0:00:21.8]} 56. h5 {[%clk 0:00:09]} 56... Qb1+ {[%clk
0:00:23.2]} 57. Kf2 {[%clk 0:00:08]} 57... d3 {[%clk 0:00:24.6]} 58. Bf1 {[%clk
0:00:07.4]} 58... d2 {[%clk 0:00:25.5]} 0-1